[Event "Late-Titled-Tuesday-Blitz-June-04-2024"]
[Site "Chess.com"]
[Date "2024.06.04"]
[Round "11"]
[White "IMRosen"]
[Black "stollenmonster"]
[Result "1-0"]
[WhiteElo "2762"]
[BlackElo "2874"]
[TimeControl "180+1"]
[EndTime "16:06:19 PDT"]
[Termination "IMRosen won by resignation"]

1. d4 {[%clk 0:03:00.9]} 1... Nf6 {[%clk 0:02:59.5]} 2. Bf4 {[%clk 0:03:00.1]}
2... d5 {[%clk 0:02:59]} 3. e3 {[%clk 0:03:00.4]} 3... Bf5 {[%clk 0:02:59.3]} 4.
c4 {[%clk 0:02:56.2]} 4... e6 {[%clk 0:02:58.2]} 5. Nc3 {[%clk 0:02:51.9]} 5...
Ne4 {[%clk 0:02:57.6]} 6. Qb3 {[%clk 0:02:17.7]} 6... Nd7 {[%clk 0:02:38]} 7.
cxd5 {[%clk 0:02:12.1]} 7... Nxc3 {[%clk 0:02:28.3]} 8. bxc3 {[%clk 0:02:11.7]}
8... exd5 {[%clk 0:02:28.6]} 9. Qxd5 {[%clk 0:02:05.2]} 9... Be6 {[%clk
0:02:29.2]} 10. Qxb7 {[%clk 0:01:58.9]} 10... Bd6 {[%clk 0:02:18.7]} 11. Bxd6
{[%clk 0:01:47.3]} 11... cxd6 {[%clk 0:02:19.6]} 12. Nf3 {[%clk 0:01:18.9]}
12... O-O {[%clk 0:02:17]} 13. Bd3 {[%clk 0:01:15.6]} 13... Qa5 {[%clk
0:02:13.4]} 14. Qb4 {[%clk 0:01:11.5]} 14... Qc7 {[%clk 0:02:10.7]} 15. O-O
{[%clk 0:01:08.7]} 15... h6 {[%clk 0:02:02.8]} 16. Rac1 {[%clk 0:01:01]} 16...
Rab8 {[%clk 0:02:02.4]} 17. Qa3 {[%clk 0:00:57.5]} 17... Nb6 {[%clk 0:01:56.9]}
18. Nd2 {[%clk 0:00:54]} 18... d5 {[%clk 0:01:52]} 19. Nb3 {[%clk 0:00:50.2]}
19... Rfc8 {[%clk 0:01:48.9]} 20. Nc5 {[%clk 0:00:50.3]} 20... Qe7 {[%clk
0:01:46.7]} 21. Qa5 {[%clk 0:00:44.2]} 21... Bg4 {[%clk 0:01:43.4]} 22. h3
{[%clk 0:00:42.2]} 22... Bh5 {[%clk 0:01:43.9]} 23. Rb1 {[%clk 0:00:39.2]} 23...
Qg5 {[%clk 0:01:34.1]} 24. Rfe1 {[%clk 0:00:28.4]} 24... Bf3 {[%clk 0:01:28.6]}
25. Bf1 {[%clk 0:00:28.6]} 25... Nc4 {[%clk 0:01:26.9]} 26. Rxb8 {[%clk
0:00:19.2]} 26... Rxb8 {[%clk 0:01:22]} 27. Qxa7 {[%clk 0:00:19.1]} 27... Rb2
{[%clk 0:01:16.5]} 28. Qd7 {[%clk 0:00:09.4]} 28... Nd2 {[%clk 0:01:04.4]} 29.
h4 {[%clk 0:00:09.9]} 29... Qxh4 {[%clk 0:00:58]} 30. Nd3 {[%clk 0:00:06.2]}
30... Nxf1 {[%clk 0:00:52.5]} 31. Rxf1 {[%clk 0:00:05.4]} 31... Be4 {[%clk
0:00:19.1]} 32. Nxb2 {[%clk 0:00:04.5]} 32... Qg5 {[%clk 0:00:13.1]} 33. Qc8+
{[%clk 0:00:04.6]} 33... Kh7 {[%clk 0:00:13.1]} 34. Qh3 {[%clk 0:00:05.5]} 34...
Qd8 {[%clk 0:00:12.9]} 35. f3 {[%clk 0:00:05.4]} 35... Bg6 {[%clk 0:00:12.8]}
36. Qg3 {[%clk 0:00:05]} 36... Qb6 {[%clk 0:00:13.2]} 37. Qf2 {[%clk 0:00:05.5]}
37... Qa5 {[%clk 0:00:13.1]} 38. Nd1 {[%clk 0:00:04.9]} 38... Bd3 {[%clk
0:00:12.2]} 39. Re1 {[%clk 0:00:05.3]} 39... Qb5 {[%clk 0:00:11.7]} 40. Qd2
{[%clk 0:00:05.8]} 40... Bg6 {[%clk 0:00:11.7]} 41. Nf2 {[%clk 0:00:05.7]} 41...
Qc4 {[%clk 0:00:11.5]} 42. e4 {[%clk 0:00:06]} 42... Qc6 {[%clk 0:00:10.8]} 43.
exd5 {[%clk 0:00:05.1]} 43... Qxd5 {[%clk 0:00:11.2]} 44. Ng4 {[%clk 0:00:05.4]}
44... f6 {[%clk 0:00:10.9]} 45. Ne3 {[%clk 0:00:05.6]} 45... Qe6 {[%clk
0:00:10.7]} 46. c4 {[%clk 0:00:05.9]} 46... Qd6 {[%clk 0:00:11.1]} 47. c5 {[%clk
0:00:06.1]} 47... Qg3 {[%clk 0:00:10.5]} 48. d5 {[%clk 0:00:05.7]} 48... h5
{[%clk 0:00:10.9]} 49. d6 {[%clk 0:00:05.7]} 49... h4 {[%clk 0:00:11.3]} 50. Nf1
{[%clk 0:00:05.4]} 50... Qe5 {[%clk 0:00:09.5]} 51. Rxe5 {[%clk 0:00:04.8]}
51... fxe5 {[%clk 0:00:10.4]} 52. d7 {[%clk 0:00:05.7]} 1-0

[Event "Late-Titled-Tuesday-Blitz-June-04-2024"]
[Site "Chess.com"]
[Date "2024.06.04"]
[Round "11"]
[White "Godzillator"]
[Black "Alex_Banzea"]
[Result "0-1"]
[WhiteElo "2416"]
[BlackElo "2581"]
[TimeControl "180+1"]
[EndTime "16:06:23 PDT"]
[Termination "Alex_Banzea won by checkmate"]

1. e4 {[%clk 0:03:00.9]} 1... c6 {[%clk 0:02:49]} 2. d4 {[%clk 0:02:59.9]} 2...
d5 {[%clk 0:02:49.9]} 3. exd5 {[%clk 0:02:59.9]} 3... cxd5 {[%clk 0:02:47.5]} 4.
Bd3 {[%clk 0:02:59.4]} 4... Nf6 {[%clk 0:02:46.8]} 5. c3 {[%clk 0:02:58.3]} 5...
Bg4 {[%clk 0:02:47.2]} 6. Qb3 {[%clk 0:02:57.5]} 6... Qc7 {[%clk 0:02:47.2]} 7.
Ne2 {[%clk 0:02:56.2]} 7... Bxe2 {[%clk 0:02:47]} 8. Bxe2 {[%clk 0:02:55.9]}
8... e6 {[%clk 0:02:46.7]} 9. O-O {[%clk 0:02:47.8]} 9... Bd6 {[%clk 0:02:47.2]}
10. h3 {[%clk 0:02:45.8]} 10... Nc6 {[%clk 0:02:47.1]} 11. Na3 {[%clk 0:02:44]}
11... a6 {[%clk 0:02:46.7]} 12. Bg5 {[%clk 0:02:38.8]} 12... Ne4 {[%clk
0:02:46.7]} 13. Be3 {[%clk 0:02:38.9]} 13... O-O {[%clk 0:02:46.5]} 14. Rac1
{[%clk 0:02:34]} 14... b5 {[%clk 0:02:46.8]} 15. Qc2 {[%clk 0:02:25.8]} 15...
Bxa3 {[%clk 0:02:44.5]} 16. bxa3 {[%clk 0:02:24.8]} 16... Rfc8 {[%clk
0:02:40.4]} 17. a4 {[%clk 0:02:22.6]} 17... bxa4 {[%clk 0:02:10.6]} 18. Qxa4
{[%clk 0:02:21.6]} 18... Qa5 {[%clk 0:02:11.3]} 19. Qc2 {[%clk 0:02:07.3]} 19...
Qa3 {[%clk 0:01:59.8]} 20. Bd3 {[%clk 0:02:03.8]} 20... Nb4 {[%clk 0:01:58.1]}
21. Qe2 {[%clk 0:01:56.9]} 21... Nxd3 {[%clk 0:01:51.7]} 22. Qxd3 {[%clk
0:01:56.5]} 22... Rxc3 {[%clk 0:01:52.2]} 23. Rxc3 {[%clk 0:01:55.2]} 23... Qxc3
{[%clk 0:01:52.5]} 24. Qxc3 {[%clk 0:01:52.5]} 24... Nxc3 {[%clk 0:01:52.8]} 25.
a3 {[%clk 0:01:38.5]} 25... Rb8 {[%clk 0:01:47.5]} 26. Kh2 {[%clk 0:01:32.3]}
26... Rb3 {[%clk 0:01:46.4]} 27. Rc1 {[%clk 0:01:30.7]} 27... h6 {[%clk
0:01:35.9]} 28. Bd2 {[%clk 0:01:30.2]} 28... Nb1 {[%clk 0:01:18.9]} 29. Rc8+
{[%clk 0:01:16.4]} 29... Kh7 {[%clk 0:01:18.6]} 30. Be3 {[%clk 0:01:15.4]} 30...
Nxa3 {[%clk 0:01:18.3]} 31. Rc7 {[%clk 0:01:15.7]} 31... Kg6 {[%clk 0:01:17.9]}
32. h4 {[%clk 0:01:13.8]} 32... h5 {[%clk 0:01:17]} 33. g4 {[%clk 0:01:14]}
33... hxg4 {[%clk 0:01:09.2]} 34. h5+ {[%clk 0:01:14.1]} 34... Kf6 {[%clk
0:00:41.3]} 35. Ra7 {[%clk 0:01:07.2]} 35... Nc4 {[%clk 0:00:41.5]} 36. Bc1
{[%clk 0:00:54.4]} 36... a5 {[%clk 0:00:33.7]} 37. Kg2 {[%clk 0:00:51.4]} 37...
Rc3 {[%clk 0:00:19.1]} 38. Bf4 {[%clk 0:00:50.5]} 38... Rd3 {[%clk 0:00:19.6]}
39. Bc7 {[%clk 0:00:45.3]} 39... Kg5 {[%clk 0:00:05.5]} 40. Bd8+ {[%clk
0:00:43.7]} 40... Kxh5 {[%clk 0:00:03.4]} 41. Rxf7 {[%clk 0:00:44.3]} 41... Rxd4
{[%clk 0:00:02.4]} 42. Rxg7 {[%clk 0:00:44.6]} 42... Rd2 {[%clk 0:00:01.9]} 43.
Rg5+ {[%clk 0:00:43.6]} 43... Kh6 {[%clk 0:00:02.2]} 44. Rg8 {[%clk 0:00:38.7]}
44... a4 {[%clk 0:00:02.2]} 45. Bg5+ {[%clk 0:00:37.8]} 45... Kh7 {[%clk
0:00:02.2]} 46. Bxd2 {[%clk 0:00:37.8]} 46... Kxg8 {[%clk 0:00:02.2]} 47. Bb4
{[%clk 0:00:35.7]} 47... a3 {[%clk 0:00:02.5]} 48. Bc3 {[%clk 0:00:36.1]} 48...
a2 {[%clk 0:00:01.9]} 49. Kg3 {[%clk 0:00:35.3]} 49... Nd2 {[%clk 0:00:02.8]}
50. Kxg4 {[%clk 0:00:33.9]} 50... Nb3 {[%clk 0:00:02.5]} 51. Kg5 {[%clk
0:00:33.8]} 51... Kf7 {[%clk 0:00:01.9]} 52. f4 {[%clk 0:00:32.9]} 52... d4
{[%clk 0:00:01.9]} 53. Bb2 {[%clk 0:00:31.4]} 53... d3 {[%clk 0:00:02]} 54. f5
{[%clk 0:00:30.4]} 54... exf5 {[%clk 0:00:02.2]} 55. Kf4 {[%clk 0:00:29.9]}
55... d2 {[%clk 0:00:02.3]} 56. Ke5 {[%clk 0:00:29.4]} 56... d1=Q {[%clk
0:00:03.2]} 57. Kf4 {[%clk 0:00:29.4]} 57... Qd2+ {[%clk 0:00:02.9]} 58. Kxf5
{[%clk 0:00:29.2]} 58... Qxb2 {[%clk 0:00:03]} 59. Kg5 {[%clk 0:00:28.8]} 59...
Qe5+ {[%clk 0:00:03.1]} 60. Kh6 {[%clk 0:00:27.6]} 60... a1=Q {[%clk 0:00:04]}
61. Kh7 {[%clk 0:00:27]} 61... Qg7# {[%clk 0:00:03.3]} 0-1

[Event "Late-Titled-Tuesday-Blitz-June-04-2024"]
[Site "Chess.com"]
[Date "2024.06.04"]
[Round "11"]
[White "KChor05"]
[Black "AustinThomas12345"]
[Result "1-0"]
[WhiteElo "2627"]
[BlackElo "2482"]
[TimeControl "180+1"]
[EndTime "16:06:26 PDT"]
[Termination "KChor05 won on time"]

1. e4 {[%clk 0:03:00.9]} 1... c5 {[%clk 0:03:00]} 2. Nf3 {[%clk 0:03:00.1]} 2...
g6 {[%clk 0:02:59.7]} 3. d4 {[%clk 0:02:59]} 3... cxd4 {[%clk 0:02:59.8]} 4.
Nxd4 {[%clk 0:02:59]} 4... Nc6 {[%clk 0:03:00]} 5. Nc3 {[%clk 0:02:57.9]} 5...
Bg7 {[%clk 0:03:00.2]} 6. Be3 {[%clk 0:02:57.7]} 6... Nf6 {[%clk 0:03:00.2]} 7.
Bc4 {[%clk 0:02:56.2]} 7... O-O {[%clk 0:03:00.5]} 8. Bb3 {[%clk 0:02:55.7]}
8... d5 {[%clk 0:03:00.7]} 9. exd5 {[%clk 0:02:43.5]} 9... Na5 {[%clk
0:03:00.9]} 10. Qf3 {[%clk 0:02:39.1]} 10... Nxb3 {[%clk 0:02:59.3]} 11. axb3
{[%clk 0:02:30.2]} 11... Bg4 {[%clk 0:02:59.8]} 12. Qg3 {[%clk 0:02:28.1]} 12...
Bh5 {[%clk 0:02:53]} 13. d6 {[%clk 0:02:24.7]} 13... exd6 {[%clk 0:02:40.3]} 14.
O-O {[%clk 0:02:23]} 14... Ng4 {[%clk 0:02:24.4]} 15. Nd5 {[%clk 0:02:17.7]}
15... Nxe3 {[%clk 0:02:22.9]} 16. Qxe3 {[%clk 0:02:14.7]} 16... Re8 {[%clk
0:02:06]} 17. Qd2 {[%clk 0:02:01.5]} 17... Qh4 {[%clk 0:01:54.7]} 18. Ra4 {[%clk
0:01:44.8]} 18... Re4 {[%clk 0:01:39.4]} 19. c3 {[%clk 0:01:29.9]} 19... Rae8
{[%clk 0:01:02.7]} 20. g3 {[%clk 0:01:26.3]} 20... Qh3 {[%clk 0:00:39.2]} 21.
Nf4 {[%clk 0:01:20.8]} 21... Rxf4 {[%clk 0:00:30.7]} 22. Qxf4 {[%clk 0:01:16.9]}
22... Bg4 {[%clk 0:00:27.8]} 23. Raa1 {[%clk 0:00:49]} 23... Bh6 {[%clk
0:00:13.5]} 24. Qxd6 {[%clk 0:00:43.1]} 24... Re4 {[%clk 0:00:11.9]} 25. Rfe1
{[%clk 0:00:35.7]} 25... Rxe1+ {[%clk 0:00:06.3]} 26. Rxe1 {[%clk 0:00:36.6]}
26... Bf8 {[%clk 0:00:06.5]} 27. Re8 {[%clk 0:00:33]} 27... Qh6 {[%clk
0:00:07.2]} 28. Qb8 {[%clk 0:00:21.1]} 28... Bh3 {[%clk 0:00:07.2]} 29. Rxf8+
{[%clk 0:00:20]} 29... Qxf8 {[%clk 0:00:08.1]} 30. Qxf8+ {[%clk 0:00:20.2]}
30... Kxf8 {[%clk 0:00:09]} 31. Nb5 {[%clk 0:00:19.3]} 31... a6 {[%clk 0:00:09]}
32. Nd6 {[%clk 0:00:19.6]} 32... b6 {[%clk 0:00:09.6]} 33. f4 {[%clk 0:00:16.7]}
33... Ke7 {[%clk 0:00:09.7]} 34. Nc4 {[%clk 0:00:17.2]} 34... b5 {[%clk
0:00:09.8]} 35. Ne5 {[%clk 0:00:17.3]} 35... Be6 {[%clk 0:00:10]} 36. b4 {[%clk
0:00:17]} 36... Kd6 {[%clk 0:00:10.1]} 37. Kf2 {[%clk 0:00:16.6]} 37... f6
{[%clk 0:00:09.8]} 38. Nd3 {[%clk 0:00:15.8]} 38... Kd5 {[%clk 0:00:10.4]} 39.
Nc5 {[%clk 0:00:16]} 39... Bc8 {[%clk 0:00:11.1]} 40. Ke3 {[%clk 0:00:16.2]}
40... a5 {[%clk 0:00:11.7]} 41. Nd3 {[%clk 0:00:13.1]} 41... axb4 {[%clk
0:00:10.3]} 42. Nxb4+ {[%clk 0:00:12.2]} 42... Kc4 {[%clk 0:00:10.8]} 43. Kd2
{[%clk 0:00:12.6]} 43... Kb3 {[%clk 0:00:10.8]} 44. Kc1 {[%clk 0:00:12.8]} 44...
Be6 {[%clk 0:00:10.8]} 45. Nc6 {[%clk 0:00:12.6]} 45... g5 {[%clk 0:00:11.1]}
46. Nd4+ {[%clk 0:00:12.8]} 46... Kc4 {[%clk 0:00:05.1]} 47. Nxe6 {[%clk
0:00:12.8]} 47... gxf4 {[%clk 0:00:05.8]} 48. Nxf4 {[%clk 0:00:12.9]} 48... f5
{[%clk 0:00:05.8]} 49. Kc2 {[%clk 0:00:12.2]} 49... b4 {[%clk 0:00:06.7]} 50.
b3+ {[%clk 0:00:12.4]} 50... Kc5 {[%clk 0:00:04.5]} 51. Nd3+ {[%clk 0:00:07]}
51... Kb5 {[%clk 0:00:03]} 52. c4+ {[%clk 0:00:06.8]} 1-0

[Event "Late-Titled-Tuesday-Blitz-June-04-2024"]
[Site "Chess.com"]
[Date "2024.06.04"]
[Round "11"]
[White "Mikhal867"]
[Black "simaopdias"]
[Result "0-1"]
[WhiteElo "2455"]
[BlackElo "2239"]
[TimeControl "180+1"]
[EndTime "16:06:26 PDT"]
[Termination "simaopdias won by checkmate"]

1. e4 {[%clk 0:03:00.9]} 1... c5 {[%clk 0:02:59.6]} 2. Nf3 {[%clk 0:03:00.3]}
2... g6 {[%clk 0:03:00.5]} 3. d4 {[%clk 0:02:59.4]} 3... cxd4 {[%clk 0:03:01.4]}
4. Qxd4 {[%clk 0:02:58.8]} 4... Nf6 {[%clk 0:03:01.5]} 5. e5 {[%clk 0:02:58.6]}
5... Nc6 {[%clk 0:03:01.9]} 6. Qf4 {[%clk 0:02:58.2]} 6... Nd5 {[%clk
0:03:02.5]} 7. Qd2 {[%clk 0:02:57.8]} 7... Nc7 {[%clk 0:02:56.5]} 8. b3 {[%clk
0:02:55.3]} 8... Bg7 {[%clk 0:02:56.8]} 9. Bb2 {[%clk 0:02:55.2]} 9... O-O
{[%clk 0:02:57.5]} 10. Na3 {[%clk 0:02:41.2]} 10... d6 {[%clk 0:02:56.7]} 11.
O-O-O {[%clk 0:02:40.7]} 11... dxe5 {[%clk 0:02:55.1]} 12. Qxd8 {[%clk
0:02:38.5]} 12... Rxd8 {[%clk 0:02:56]} 13. Rxd8+ {[%clk 0:02:36.6]} 13... Nxd8
{[%clk 0:02:56.9]} 14. Nxe5 {[%clk 0:02:35.7]} 14... Be6 {[%clk 0:02:48.2]} 15.
Bc4 {[%clk 0:02:30.5]} 15... Nc6 {[%clk 0:02:41.8]} 16. Nxc6 {[%clk 0:02:28.4]}
16... bxc6 {[%clk 0:02:40]} 17. Bxg7 {[%clk 0:02:24.1]} 17... Kxg7 {[%clk
0:02:40.3]} 18. Rd1 {[%clk 0:02:19.2]} 18... Kf6 {[%clk 0:02:35]} 19. f4 {[%clk
0:02:13.5]} 19... Bd5 {[%clk 0:02:34.7]} 20. g3 {[%clk 0:02:03.3]} 20... h5
{[%clk 0:02:32.8]} 21. Be2 {[%clk 0:01:56]} 21... Ne6 {[%clk 0:02:18.8]} 22. c4
{[%clk 0:01:53.5]} 22... Be4 {[%clk 0:02:16.9]} 23. b4 {[%clk 0:01:45.8]} 23...
Rd8 {[%clk 0:02:12.3]} 24. Rxd8 {[%clk 0:01:38.5]} 24... Nxd8 {[%clk 0:02:13.2]}
25. Kd2 {[%clk 0:01:38.6]} 25... Bf5 {[%clk 0:01:58.7]} 26. c5 {[%clk
0:01:30.7]} 26... Be4 {[%clk 0:01:55.5]} 27. Nc4 {[%clk 0:01:24.4]} 27... Bd5
{[%clk 0:01:53.7]} 28. a3 {[%clk 0:01:21.3]} 28... Kf5 {[%clk 0:01:43]} 29. Ne3+
{[%clk 0:01:15.2]} 29... Ke4 {[%clk 0:01:29.8]} 30. Bd3+ {[%clk 0:01:10]} 30...
Kf3 {[%clk 0:01:25.7]} 31. Nxd5 {[%clk 0:01:10.1]} 31... cxd5 {[%clk 0:01:25.6]}
32. b5 {[%clk 0:01:10.5]} 32... Ne6 {[%clk 0:01:15.8]} 33. b6 {[%clk 0:01:08.4]}
33... axb6 {[%clk 0:01:13.9]} 34. cxb6 {[%clk 0:01:08.3]} 34... Nc5 {[%clk
0:01:13]} 35. a4 {[%clk 0:01:02.1]} 35... h4 {[%clk 0:01:07.8]} 36. a5 {[%clk
0:00:58]} 36... Nb3+ {[%clk 0:01:05.9]} 37. Kc3 {[%clk 0:00:57.4]} 37... Nxa5
{[%clk 0:01:06.3]} 38. Kb4 {[%clk 0:00:57.7]} 38... Nb7 {[%clk 0:01:05.6]} 39.
gxh4 {[%clk 0:00:56.3]} 39... Kxf4 {[%clk 0:01:05.2]} 40. Ba6 {[%clk 0:00:56.3]}
40... Nd6 {[%clk 0:01:04.6]} 41. b7 {[%clk 0:00:56.7]} 41... Nxb7 {[%clk
0:01:01]} 42. Bxb7 {[%clk 0:00:57]} 42... d4 {[%clk 0:00:51.7]} 43. Kc4 {[%clk
0:00:54.7]} 43... e5 {[%clk 0:00:48.5]} 44. Kd3 {[%clk 0:00:48.8]} 44... f5
{[%clk 0:00:37.1]} 45. Ke2 {[%clk 0:00:48.2]} 45... Kg4 {[%clk 0:00:32.2]} 46.
Kf2 {[%clk 0:00:38.5]} 46... Kxh4 {[%clk 0:00:31.3]} 47. Kg2 {[%clk 0:00:36.1]}
47... Kg4 {[%clk 0:00:31.2]} 48. Bd5 {[%clk 0:00:32.1]} 48... g5 {[%clk
0:00:29.6]} 49. Be6 {[%clk 0:00:31.3]} 49... Kf4 {[%clk 0:00:29.7]} 50. Kf2
{[%clk 0:00:31.6]} 50... e4 {[%clk 0:00:29.9]} 51. Ke2 {[%clk 0:00:31.2]} 51...
d3+ {[%clk 0:00:28]} 52. Kd2 {[%clk 0:00:31.1]} 52... Ke5 {[%clk 0:00:27.9]} 53.
Bf7 {[%clk 0:00:29.9]} 53... f4 {[%clk 0:00:28.1]} 54. Bh5 {[%clk 0:00:29.4]}
54... Kd4 {[%clk 0:00:27.8]} 55. Bg6 {[%clk 0:00:28.1]} 55... e3+ {[%clk
0:00:27.4]} 56. Kd1 {[%clk 0:00:28.3]} 56... Kc3 {[%clk 0:00:27.7]} 57. Ke1
{[%clk 0:00:19.8]} 57... f3 {[%clk 0:00:27.1]} 58. Bh5 {[%clk 0:00:17.6]} 58...
d2+ {[%clk 0:00:25.4]} 59. Kd1 {[%clk 0:00:11.4]} 59... e2# {[%clk 0:00:24.8]}
0-1

[Event "Late-Titled-Tuesday-Blitz-June-04-2024"]
[Site "Chess.com"]
[Date "2024.06.04"]
[Round "11"]
[White "osielchesslover2011"]
[Black "urano56"]
[Result "1-0"]
[WhiteElo "2233"]
[BlackElo "2426"]
[TimeControl "180+1"]
[EndTime "16:06:32 PDT"]
[Termination "osielchesslover2011 won by checkmate"]

1. e4 {[%clk 0:03:00.9]} 1... e6 {[%clk 0:02:56.4]} 2. d4 {[%clk 0:02:59.9]}
2... d5 {[%clk 0:02:56.6]} 3. Nd2 {[%clk 0:03:00.3]} 3... c5 {[%clk 0:02:55.9]}
4. Ngf3 {[%clk 0:02:59.3]} 4... cxd4 {[%clk 0:02:50.1]} 5. exd5 {[%clk 0:02:59]}
5... Qxd5 {[%clk 0:02:48.8]} 6. Bc4 {[%clk 0:02:59.5]} 6... Qd8 {[%clk
0:02:45.8]} 7. O-O {[%clk 0:02:58.7]} 7... Nf6 {[%clk 0:02:40.8]} 8. Nb3 {[%clk
0:02:59.1]} 8... Be7 {[%clk 0:02:35.2]} 9. Nbxd4 {[%clk 0:02:58]} 9... O-O
{[%clk 0:02:34.3]} 10. Bf4 {[%clk 0:02:57.4]} 10... a6 {[%clk 0:02:33.4]} 11. a4
{[%clk 0:02:56.2]} 11... Bd7 {[%clk 0:02:28]} 12. Ne5 {[%clk 0:02:54.2]} 12...
Nc6 {[%clk 0:02:16]} 13. Ndxc6 {[%clk 0:02:48.2]} 13... Bxc6 {[%clk 0:02:13.3]}
14. Nxc6 {[%clk 0:02:45]} 14... bxc6 {[%clk 0:02:13.3]} 15. Qxd8 {[%clk
0:02:45.6]} 15... Rfxd8 {[%clk 0:02:14.2]} 16. Rad1 {[%clk 0:02:45.7]} 16... Nd5
{[%clk 0:02:14.2]} 17. Be5 {[%clk 0:02:41.3]} 17... f6 {[%clk 0:02:11.8]} 18.
Bg3 {[%clk 0:02:41.3]} 18... e5 {[%clk 0:02:09.7]} 19. Rd2 {[%clk 0:02:28.2]}
19... Kf8 {[%clk 0:02:03.1]} 20. Rfd1 {[%clk 0:02:27.4]} 20... Rdb8 {[%clk
0:01:50.8]} 21. b3 {[%clk 0:02:04.7]} 21... Nc3 {[%clk 0:01:49.9]} 22. Re1
{[%clk 0:01:58.9]} 22... Rd8 {[%clk 0:01:48.3]} 23. Rd3 {[%clk 0:01:48.6]} 23...
Bb4 {[%clk 0:01:36.3]} 24. h3 {[%clk 0:01:27]} 24... a5 {[%clk 0:01:21.3]} 25.
f3 {[%clk 0:01:14.8]} 25... h6 {[%clk 0:00:20.5]} 26. Bf2 {[%clk 0:01:07.1]}
26... g5 {[%clk 0:00:20.4]} 27. g3 {[%clk 0:00:39.4]} 27... Ke7 {[%clk
0:00:19.9]} 28. Kg2 {[%clk 0:00:39.2]} 28... h5 {[%clk 0:00:19.6]} 29. g4 {[%clk
0:00:32.7]} 29... hxg4 {[%clk 0:00:18.4]} 30. hxg4 {[%clk 0:00:24.2]} 30... Rh8
{[%clk 0:00:18.3]} 31. Ree3 {[%clk 0:00:16.6]} 31... Nd5 {[%clk 0:00:18.3]} 32.
Bxd5 {[%clk 0:00:16.2]} 32... cxd5 {[%clk 0:00:19.2]} 33. Rxd5 {[%clk
0:00:16.4]} 33... Rac8 {[%clk 0:00:20.1]} 34. Re2 {[%clk 0:00:14.4]} 34... Rc7
{[%clk 0:00:18.5]} 35. Bb6 {[%clk 0:00:13.1]} 35... Rc6 {[%clk 0:00:18.3]} 36.
Bxa5 {[%clk 0:00:13.3]} 36... Bc5 {[%clk 0:00:18.1]} 37. b4 {[%clk 0:00:12.4]}
37... Bd4 {[%clk 0:00:18.4]} 38. b5 {[%clk 0:00:12]} 38... Rc4 {[%clk
0:00:18.7]} 39. b6 {[%clk 0:00:07.5]} 39... Rxa4 {[%clk 0:00:18.8]} 40. b7
{[%clk 0:00:06.9]} 40... Rb8 {[%clk 0:00:17.6]} 41. Rb5 {[%clk 0:00:07.5]} 41...
Rc4 {[%clk 0:00:10.2]} 42. c3 {[%clk 0:00:03.7]} 42... Bxc3 {[%clk 0:00:08.5]}
43. Rc2 {[%clk 0:00:03.2]} 43... Ra4 {[%clk 0:00:03.1]} 44. Rxc3 {[%clk
0:00:03.1]} 44... Ra2+ {[%clk 0:00:03.1]} 45. Kg3 {[%clk 0:00:02.7]} 45... Rh8
{[%clk 0:00:03.4]} 46. Rc7+ {[%clk 0:00:03.2]} 46... Kd8 {[%clk 0:00:03.3]} 47.
b8=Q# {[%clk 0:00:03.7]} 1-0

[Event "Late-Titled-Tuesday-Blitz-June-04-2024"]
[Site "Chess.com"]
[Date "2024.06.04"]
[Round "11"]
[White "Nf3c5"]
[Black "Heydarli77"]
[Result "1/2-1/2"]
[WhiteElo "2600"]
[BlackElo "2467"]
[TimeControl "180+1"]
[EndTime "16:06:33 PDT"]
[Termination "Game drawn by repetition"]

1. Nf3 {[%clk 0:02:55.7]} 1... Nf6 {[%clk 0:02:58.6]} 2. b3 {[%clk 0:02:55.8]}
2... b6 {[%clk 0:02:57.3]} 3. Bb2 {[%clk 0:02:54.4]} 3... Bb7 {[%clk 0:02:57.3]}
4. c4 {[%clk 0:02:54.6]} 4... c5 {[%clk 0:02:56.6]} 5. g3 {[%clk 0:02:52.8]}
5... g6 {[%clk 0:02:56.1]} 6. Bg2 {[%clk 0:02:53.3]} 6... Bg7 {[%clk 0:02:56.2]}
7. O-O {[%clk 0:02:53.9]} 7... O-O {[%clk 0:02:56.3]} 8. d4 {[%clk 0:02:54.4]}
8... cxd4 {[%clk 0:02:51.3]} 9. Qxd4 {[%clk 0:02:52.2]} 9... Nc6 {[%clk
0:02:48.2]} 10. Qf4 {[%clk 0:02:33.1]} 10... d6 {[%clk 0:02:42.2]} 11. Nc3
{[%clk 0:02:32]} 11... Rc8 {[%clk 0:02:37.7]} 12. Rfd1 {[%clk 0:02:24.4]} 12...
Nb4 {[%clk 0:02:33]} 13. Rac1 {[%clk 0:02:12.5]} 13... Nh5 {[%clk 0:02:27.7]}
14. Qd2 {[%clk 0:02:10.1]} 14... a6 {[%clk 0:02:19.8]} 15. Na4 {[%clk
0:02:02.5]} 15... Bxb2 {[%clk 0:02:10.4]} 16. Qxb2 {[%clk 0:01:59]} 16... Nf6
{[%clk 0:02:08.3]} 17. a3 {[%clk 0:01:51.5]} 17... Nc6 {[%clk 0:02:06.3]} 18. c5
{[%clk 0:01:43.3]} 18... bxc5 {[%clk 0:02:00.5]} 19. Nxc5 {[%clk 0:01:43.5]}
19... Qb6 {[%clk 0:01:57.7]} 20. Nxb7 {[%clk 0:01:36.5]} 20... Qxb7 {[%clk
0:01:58.3]} 21. Nd4 {[%clk 0:01:33.1]} 21... d5 {[%clk 0:01:58.3]} 22. Nxc6
{[%clk 0:01:03.1]} 22... Rxc6 {[%clk 0:01:57.2]} 23. Rxc6 {[%clk 0:01:02]} 23...
Qxc6 {[%clk 0:01:56.6]} 24. Rc1 {[%clk 0:01:02.7]} 24... Qb7 {[%clk 0:01:52.3]}
25. b4 {[%clk 0:01:03.1]} 25... Rc8 {[%clk 0:01:49.5]} 26. Rxc8+ {[%clk
0:00:57.4]} 26... Qxc8 {[%clk 0:01:50.1]} 27. a4 {[%clk 0:00:58.3]} 27... Qc4
{[%clk 0:01:44.3]} 28. b5 {[%clk 0:00:56]} 28... axb5 {[%clk 0:01:29.7]} 29.
axb5 {[%clk 0:00:55.7]} 29... Nd7 {[%clk 0:01:27.5]} 30. b6 {[%clk 0:00:49.6]}
30... e6 {[%clk 0:01:26.2]} 31. b7 {[%clk 0:00:48.1]} 31... Qc7 {[%clk
0:01:25.7]} 32. e4 {[%clk 0:00:39.9]} 32... d4 {[%clk 0:01:19.4]} 33. f4 {[%clk
0:00:22.3]} 33... d3 {[%clk 0:01:12.2]} 34. e5 {[%clk 0:00:21.4]} 34... Qc5+
{[%clk 0:01:07]} 35. Kf1 {[%clk 0:00:21.1]} 35... Nb8 {[%clk 0:01:04.9]} 36. Qd2
{[%clk 0:00:17.1]} 36... Qb5 {[%clk 0:01:00]} 37. Be4 {[%clk 0:00:14.6]} 37...
Qb1+ {[%clk 0:00:55.6]} 38. Kg2 {[%clk 0:00:14.2]} 38... Kg7 {[%clk 0:00:45.9]}
39. Qxd3 {[%clk 0:00:13.9]} 39... Qb2+ {[%clk 0:00:44.4]} 40. Qc2 {[%clk
0:00:14.5]} 40... Qb5 {[%clk 0:00:42.6]} 41. g4 {[%clk 0:00:14.1]} 41... h6
{[%clk 0:00:39.7]} 42. h4 {[%clk 0:00:14.1]} 42... Qb4 {[%clk 0:00:36.3]} 43. h5
{[%clk 0:00:11.7]} 43... gxh5 {[%clk 0:00:34.5]} 44. gxh5 {[%clk 0:00:12.2]}
44... Qd4 {[%clk 0:00:34.5]} 45. Qd3 {[%clk 0:00:11.5]} 45... Qb2+ {[%clk
0:00:33.6]} 46. Kh3 {[%clk 0:00:11.9]} 46... Qc1 {[%clk 0:00:28.7]} 47. Qg3+
{[%clk 0:00:11.4]} 47... Kf8 {[%clk 0:00:28.2]} 48. Qd3 {[%clk 0:00:08.8]} 48...
Kg7 {[%clk 0:00:20.9]} 49. Qd8 {[%clk 0:00:05.9]} 49... Qe3+ {[%clk 0:00:19.5]}
50. Kg4 {[%clk 0:00:03.2]} 50... Qxe4 {[%clk 0:00:17.5]} 51. Qf6+ {[%clk
0:00:01.9]} 51... Kf8 {[%clk 0:00:15.4]} 52. Qd8+ {[%clk 0:00:02.3]} 52... Kg7
{[%clk 0:00:15.5]} 53. Qxb8 {[%clk 0:00:03.2]} 53... Qg2+ {[%clk 0:00:14]} 54.
Kh4 {[%clk 0:00:03.8]} 54... Qh2+ {[%clk 0:00:12.9]} 55. Kg4 {[%clk 0:00:04.2]}
55... Qg2+ {[%clk 0:00:10.7]} 56. Kh4 {[%clk 0:00:04.7]} 56... Qh2+ {[%clk
0:00:10.8]} 57. Kg4 {[%clk 0:00:05.3]} 57... Qg2+ {[%clk 0:00:11.1]} 1/2-1/2